[Event "FIDE World Rapid-ch Open 2018"]
[White "Dubov, Daniil"]
[Black "Carlsen, Magnus"]
[Site "St. Petersburg"]
[Round "11.1"]
[Annotator "ChessBase"]
[Result "1/2-1/2"]
[Date "2018.12.28"]
[WhiteElo "2703"]
[BlackElo "2835"]
[PlyCount "51"]
[TimeControl "900+10"]

1. c4 {[%emt 0:0:0]} e6 {[%emt 0:0:0]} 2. Nf3 {[%emt 0:0:2]} d5 {[%emt 0:0:0]} 3. d4 {[%emt 0:0:3]} c6 {[%emt 0:0:12]} 4. Nbd2 {[%emt 0:0:11]} f5 {[%emt 0:0:2]} 5. g3 {[%emt 0:0:1]} Nf6 {[%emt 0:0:3]} 6. Bg2 {[%emt 0:0:0]} Bd6 {[%emt 0:0:2]} 7. Ne5 {[%emt 0:0:2]} 0-0 {[%emt 0:0:8]} 8. 0-0 {[%emt 0:0:2]} b6 {[%emt 0:1:22]} 9. Qc2 {[%emt 0:0:23]} Bb7 {[%emt 0:0:0]} 10. cxd5 {[%emt 0:0:37]} cxd5 {[%emt 0:0:1]} 11. Ndf3 {[%emt 0:0:0]} Ne4 {[%emt 0:0:45]} 12. h4 {[%emt 0:0:43]} Nd7 {[%emt 0:2:0]} 13. Bf4 {[%emt 0:0:15]} Ndf6 {[%emt 0:0:3]} 14. Rac1 {[%emt 0:0:33]} Ba6 {[%emt 0:0:0]} 15. Rfe1 {[%emt 0:3:26]} Ng4 {[%emt 0:2:1]} 16. Qa4 {[%emt 0:0:17]} Bb7 {[%emt 0:0:9]} 17. Ng5 {[%emt 0:0:47]} Nxg5 {[%emt 0:1:33]} 18. Bxg5 {[%emt 0:0:27]
} Qe8 {[%emt 0:0:11]} 19. Qxe8 {[%emt 0:0:43]} Rfxe8 {[%emt 0:0:0]} 20. Nxg4 {[%emt 0:1:50]} fxg4 {[%emt 0:0:2]} 21. Bf4 {[%emt 0:0:1]
} Bxf4 {[%emt 0:0:2]} 22. gxf4 {[%emt 0:0:1]} Rac8 {[%emt 0:0:11]} 23. Kh2 {[%emt 0:0:14]} Kf7 {[%emt 0:0:39]} 24. Kg3 {[%emt 0:0:45]} h5 {[%emt 0:0:0]} 25. f3 {[%emt 0:0:4]} gxf3 {[%emt 0:0:2]} 26. Bxf3 {[%emt 0:0:15]} 1/2-1/2

[Event "FIDE World Rapid-ch Open 2018"]
[White "Artemiev, Vladislav"]
[Black "Wang, Hao"]
[Site "St. Petersburg"]
[Round "11.2"]
[Annotator "ChessBase"]
[Result "1/2-1/2"]
[Date "2018.12.28"]
[WhiteElo "2709"]
[BlackElo "2730"]
[PlyCount "44"]
[TimeControl "900+10"]

1. d4 {[%emt 0:0:0]} Nf6 {[%emt 0:0:0]} 2. Bg5 {[%emt 0:0:1]} e6 {[%emt 0:0:0]
} 3. Nd2 {[%emt 0:0:3]} d5 {[%emt 0:0:2]} 4. e3 {[%emt 0:0:0]} Be7 {[%emt 0:0:11]} 5. Bd3 {[%emt 0:0:2]} b6 {[%emt 0:0:10]} 6. c3 {[%emt 0:0:2]
} Bb7 {[%emt 0:0:6]} 7. Ngf3 {[%emt 0:0:3]} Nbd7 {[%emt 0:0:0]} 8. Qb1 {[%emt 0:0:12]} h6 {[%emt 0:0:28]} 9. Bh4 {[%emt 0:0:2]} Nh5 {[%emt 0:0:25]
} 10. Bxe7 {[%emt 0:0:11]} Qxe7 {[%emt 0:0:2]} 11. 0-0 {[%emt 0:1:25]
} Nhf6 {[%emt 0:0:31]} 12. Ne5 {[%emt 0:1:17]} Nxe5 {[%emt 0:0:0]} 13. dxe5 {[%emt 0:0:2]} Nd7 {[%emt 0:0:2]} 14. f4 {[%emt 0:0:1]} 0-0 {[%emt 0:0:35]} 15. Nf3 {[%emt 0:0:7]} Nc5 {[%emt 0:0:30]} 16. Bh7+ {[%emt 0:1:22]
} Kh8 {[%emt 0:0:2]} 17. Bc2 {[%emt 0:0:3]} Ne4 {[%emt 0:0:0]} 18. Qd1 {[%emt 0:0:1]} c5 {[%emt 0:1:56]} 19. Qe2 {[%emt 0:0:36]} a5 {[%emt 0:0:21]
} 20. Bd3 {[%emt 0:0:21]} Rad8 {[%emt 0:0:30]} 21. Rad1 {[%emt 0:1:0]
} Bc6 {[%emt 0:0:15]} 22. Qe1 {[%emt 0:2:35]} Kg8 {[%emt 0:0:0]} 1/2-1/2

[Event "FIDE World Rapid-ch Open 2018"]
[White "Nepomniachtchi, Ian"]
[Black "Yu, Yangyi"]
[Site "St. Petersburg"]
[Round "11.3"]
[Annotator "ChessBase"]
[Result "0-1"]
[Date "2018.12.28"]
[WhiteElo "2763"]
[BlackElo "2764"]
[PlyCount "118"]
[TimeControl "900+10"]

1. Nf3 {[%emt 0:0:0]} d5 {[%emt 0:0:0]} 2. e3 {[%emt 0:0:0]} Nf6 {[%emt 0:0:0]
} 3. c4 {[%emt 0:0:0]} e6 {[%emt 0:0:0]} 4. Nc3 {[%emt 0:0:0]} Be7 {[%emt 0:0:5]} 5. b3 {[%emt 0:0:2]} 0-0 {[%emt 0:0:3]} 6. Bb2 {[%emt 0:0:2]
} dxc4 {[%emt 0:0:14]} 7. Bxc4 {[%emt 0:0:22]} c5 {[%emt 0:0:0]} 8. h4 {[%emt 0:0:20]} a6 {[%emt 0:0:24]} 9. Qb1 {[%emt 0:0:20]} b5 {[%emt 0:1:25]
} 10. Be2 {[%emt 0:1:13]} Bb7 {[%emt 0:0:15]} 11. Ng5 {[%emt 0:0:0]} Nbd7 {[%emt 0:0:51]} 12. Bf3 {[%emt 0:0:3]} Bxf3 {[%emt 0:1:42]} 13. Nxf3 {[%emt 0:0:6]} Rc8 {[%emt 0:0:51]} 14. Ne2 {[%emt 0:0:51]} c4 {[%emt 0:0:50]
} 15. 0-0 {[%emt 0:1:0]} Nc5 {[%emt 0:0:21]} 16. bxc4 {[%emt 0:0:4]
} bxc4 {[%emt 0:0:15]} 17. Bd4 {[%emt 0:0:23]} Nfe4 {[%emt 0:0:0]} 18. h5 {[%emt 0:0:14]} h6 {[%emt 0:0:50]} 19. Qc2 {[%emt 0:0:41]} Nd3 {[%emt 0:0:38]} 20. Qa4 {[%emt 0:0:32]} Qd5 {[%emt 0:0:18]} 21. Rab1 {[%emt 0:0:29]
} Qxh5 {[%emt 0:0:22]} 22. Qxa6 {[%emt 0:0:2]} Nxd2 {[%emt 0:0:0]} 23. Nxd2 {[%emt 0:1:12]} Qxe2 {[%emt 0:0:2]} 24. Nxc4 {[%emt 0:0:0]} Nxf2 {[%emt 0:1:1]} 25. Rb7 {[%emt 0:0:52]} Bh4 {[%emt 0:1:14]} 26. Rxf7 {[%emt 0:0:2]} Rxf7 {[%emt 0:0:38]} 27. Qxc8+ {[%emt 0:0:2]} Kh7 {[%emt 0:0:0]
} 28. Qxe6 {[%emt 0:1:1]} Nh3+ {[%emt 0:0:16]} 29. Kh2 {[%emt 0:0:1]
} Qxf1 {[%emt 0:0:12]} 30. Qe4+ {[%emt 0:0:28]} Kg8 {[%emt 0:0:0]} 31. Qe8+ {[%emt 0:0:18]} Kh7 {[%emt 0:0:5]} 32. Qe4+ {[%emt 0:0:1]
} Kg8 {[%emt 0:0:47]} 33. Qe8+ {[%emt 0:0:2]} Rf8 {[%emt 0:0:5]} 34. Qe6+ {[%emt 0:0:17]} Qf7 {[%emt 0:0:5]} 35. Qxf7+ {[%emt 0:0:11]} Kxf7 {[%emt 0:0:0]} 36. Kxh3 {[%emt 0:0:6]} Bf6 {[%emt 0:0:1]} 37. Bc5 {[%emt 0:2:33]} Ra8 {[%emt 0:0:4]} 38. a3 {[%emt 0:0:1]} Ke6 {[%emt 0:0:9]} 39. Bb4 {[%emt 0:0:52]
} Be7 {[%emt 0:0:22]} 40. Bxe7 {[%emt 0:0:33]} Kxe7 {[%emt 0:0:0]} 41. Kg3 {[%emt 0:0:1]} Ra4 {[%emt 0:0:14]} 42. Nd2 {[%emt 0:0:2]} Rxa3 {[%emt 0:0:4]} 43. Kf3 {[%emt 0:0:1]} Ke6 {[%emt 0:0:8]} 44. Ne4 {[%emt 0:0:6]
} Ke5 {[%emt 0:0:42]} 45. g4 {[%emt 0:0:2]} Ra8 {[%emt 0:0:0]} 46. Nf2 {[%emt 0:0:2]} Rf8+ {[%emt 0:0:10]} 47. Kg3 {[%emt 0:0:1]} Kd5 {[%emt 0:0:7]} 48. Kg2 {[%emt 0:0:2]} Kc4 {[%emt 0:0:6]} 49. Kg3 {[%emt 0:0:4]
} Kc3 {[%emt 0:0:11]} 50. g5 {[%emt 0:0:33]} hxg5 {[%emt 0:0:0]} 51. Ne4+ {[%emt 0:0:46]} Kd3 {[%emt 0:0:3]} 52. Nc5+ {[%emt 0:0:7]} Kxe3 {[%emt 0:0:15]} 53. Ne6 {[%emt 0:0:1]} Rf1 {[%emt 0:0:48]} 54. Kg2 {[%emt 0:0:22]
} Re1 {[%emt 0:0:43]} 55. Nxg7 {[%emt 0:0:12]} Kf4 {[%emt 0:0:0]} 56. Nh5+ {[%emt 0:0:1]} Kg4 {[%emt 0:0:5]} 57. Nf6+ {[%emt 0:0:1]} Kh4 {[%emt 0:0:3]} 58. Nd5 {[%emt 0:0:4]} Re2+ {[%emt 0:0:18]} 59. Kf3 {[%emt 0:0:8]
} Re5 {[%emt 0:0:2]} 0-1

[Event "FIDE World Rapid-ch Open 2018"]
[White "Andreikin, Dmitry"]
[Black "Matlakov, Maxim"]
[Site "St. Petersburg"]
[Round "11.4"]
[Annotator "ChessBase"]
[Result "1/2-1/2"]
[Date "2018.12.28"]
[WhiteElo "2719"]
[BlackElo "2700"]
[PlyCount "31"]
[TimeControl "900+10"]

1. d4 {[%emt 0:0:0]} Nf6 {[%emt 0:0:0]} 2. c4 {[%emt 0:0:0]} e6 {[%emt 0:0:0]} 3. Nf3 {[%emt 0:0:0]} d5 {[%emt 0:0:0]} 4. e3 {[%emt 0:0:1]} Be7 {[%emt 0:0:0]} 5. Nc3 {[%emt 0:0:16]} 0-0 {[%emt 0:0:2]} 6. b3 {[%emt 0:0:0]} c5 {[%emt 0:0:52]} 7. Bb2 {[%emt 0:0:35]} cxd4 {[%emt 0:0:16]} 8. Nxd4 {[%emt 0:0:2]} a6 {[%emt 0:1:55]} 9. a3 {[%emt 0:4:44]} dxc4 {[%emt 0:0:0]} 10. Bxc4 {[%emt 0:0:6]} b5 {[%emt 0:0:3]} 11. Be2 {[%emt 0:1:41]} Bb7 {[%emt 0:0:5]} 12. Bf3 {[%emt 0:0:9]} Qb6 {[%emt 0:0:25]} 13. Bxb7 {[%emt 0:0:46]
} Qxb7 {[%emt 0:0:1]} 14. Qf3 {[%emt 0:0:2]} Qxf3 {[%emt 0:0:0]} 15. gxf3 {[%emt 0:0:2]} Rc8 {[%emt 0:1:33]} 16. Ke2 {[%emt 0:0:21]} 1/2-1/2

[Event "FIDE World Rapid-ch Open 2018"]
[White "Oparin, Grigoriy"]
[Black "Korobov, Anton"]
[Site "St. Petersburg"]
[Round "11.5"]
[Annotator "ChessBase"]
[Result "0-1"]
[Date "2018.12.28"]
[WhiteElo "2613"]
[BlackElo "2698"]
[PlyCount "130"]
[TimeControl "900+10"]

1. Nf3 {[%emt 0:0:0]} d5 {[%emt 0:0:4]} 2. g3 {[%emt 0:0:0]} g6 {[%emt 0:0:0]} 3. c4 {[%emt 0:0:0]} d4 {[%emt 0:0:7]} 4. b4 {[%emt 0:0:7]} Bg7 {[%emt 0:0:4]
} 5. d3 {[%emt 0:0:2]} e5 {[%emt 0:0:7]} 6. Bg2 {[%emt 0:0:0]} Ne7 {[%emt 0:0:3]} 7. 0-0 {[%emt 0:0:3]} 0-0 {[%emt 0:0:3]} 8. a4 {[%emt 0:0:16]
} a5 {[%emt 0:0:9]} 9. b5 {[%emt 0:0:3]} c5 {[%emt 0:0:2]} 10. Ra2 {[%emt 0:0:24]} Nd7 {[%emt 0:1:11]} 11. e3 {[%emt 0:0:30]} dxe3 {[%emt 0:0:39]
} 12. fxe3 {[%emt 0:0:2]} e4 {[%emt 0:1:2]} 13. dxe4 {[%emt 0:0:3]
} Ne5 {[%emt 0:0:11]} 14. Nxe5 {[%emt 0:1:20]} Bxe5 {[%emt 0:0:0]} 15. Bb2 {[%emt 0:0:46]} Bxb2 {[%emt 0:0:24]} 16. Rxb2 {[%emt 0:0:2]
} Be6 {[%emt 0:0:1]} 17. Qb3 {[%emt 0:3:42]} Qc7 {[%emt 0:0:24]} 18. Qc3 {[%emt 0:0:2]
} Nc8 {[%emt 0:1:55]} 19. Nd2 {[%emt 0:0:21]} Nb6 {[%emt 0:0:0]} 20. Ra2 {[%emt 0:0:32]} Rfd8 {[%emt 0:0:22]} 21. e5 {[%emt 0:0:44]} h5 {[%emt 0:3:49]} 22. Raa1 {[%emt 0:1:35]} Rab8 {[%emt 0:2:55]} 23. Rf2 {[%emt 0:2:40]
} Kg7 {[%emt 0:1:1]} 24. Ne4 {[%emt 0:2:4]} Nd7 {[%emt 0:0:0]} 25. Nd6 {[%emt 0:0:30]} Kg8 {[%emt 0:0:3]} 26. Rd1 {[%emt 0:0:26]} b6 {[%emt 0:0:22]} 27. Rdd2 {[%emt 0:0:38]} Nf8 {[%emt 0:0:12]} 28. Bd5 {[%emt 0:0:13]
} Rd7 {[%emt 0:0:15]} 29. Ne4 {[%emt 0:0:26]} Re7 {[%emt 0:0:0]} 30. Nf6+ {[%emt 0:0:40]} Kg7 {[%emt 0:0:1]} 31. e4 {[%emt 0:0:4]} Rd8 {[%emt 0:0:9]} 32. Rfe2 {[%emt 0:0:45]} Nd7 {[%emt 0:0:25]} 33. Bxe6 {[%emt 0:0:32]
} Rxe6 {[%emt 0:0:2]} 34. Nxd7 {[%emt 0:0:40]} Rxd7 {[%emt 0:0:0]} 35. Rxd7 {[%emt 0:0:5]} Qxd7 {[%emt 0:0:1]} 36. Rd2 {[%emt 0:0:1]
} Qe7 {[%emt 0:0:13]} 37. Rd5 {[%emt 0:0:1]} h4 {[%emt 0:0:29]} 38. Kg2 {[%emt 0:0:2]
} Qg5 {[%emt 0:0:1]} 39. Kh3 {[%emt 0:0:45]} hxg3 {[%emt 0:0:0]} 40. hxg3 {[%emt 0:0:2]} Qh5+ {[%emt 0:0:4]} 41. Kg2 {[%emt 0:0:2]} Qe2+ {[%emt 0:0:1]} 42. Kg1 {[%emt 0:0:6]} Qxe4 {[%emt 0:0:3]} 43. Kf2 {[%emt 0:0:3]
} g5 {[%emt 0:0:26]} 44. Qe3 {[%emt 0:0:47]} Qf5+ {[%emt 0:0:0]} 45. Qf3 {[%emt 0:0:8]} Qc2+ {[%emt 0:0:36]} 46. Qe2 {[%emt 0:0:1]} Qh7 {[%emt 0:0:13]} 47. Qe3 {[%emt 0:0:15]} Qg6 {[%emt 0:0:36]} 48. g4 {[%emt 0:0:8]
} Qc2+ {[%emt 0:0:40]} 49. Qe2 {[%emt 0:0:7]} Qxa4 {[%emt 0:0:0]} 50. Rd6 {[%emt 0:0:11]} Qa1 {[%emt 0:0:13]} 51. Rxe6 {[%emt 0:0:11]} fxe6 {[%emt 0:0:1]} 52. Qe3 {[%emt 0:0:5]} Qb2+ {[%emt 0:0:9]} 53. Kg1 {[%emt 0:0:14]
} Qb1+ {[%emt 0:0:11]} 54. Kg2 {[%emt 0:0:6]} Kg6 {[%emt 0:0:0]} 55. Qf3 {[%emt 0:0:24]} Qb2+ {[%emt 0:0:6]} 56. Kh3 {[%emt 0:0:5]} Qxe5 {[%emt 0:0:8]} 57. Qc6 {[%emt 0:0:8]} a4 {[%emt 0:0:23]} 58. Qe8+ {[%emt 0:0:7]
} Kh6 {[%emt 0:0:4]} 59. Qf8+ {[%emt 0:0:19]} Qg7 {[%emt 0:0:0]} 60. Qd6 {[%emt 0:0:7]} Qf6 {[%emt 0:0:15]} 61. Qxb6 {[%emt 0:0:7]} a3 {[%emt 0:0:2]} 62. Qa6 {[%emt 0:0:10]} Qf3+ {[%emt 0:0:12]} 63. Kh2 {[%emt 0:0:1]
} Qe2+ {[%emt 0:0:8]} 64. Kh3 {[%emt 0:0:2]} a2 {[%emt 0:0:0]} 65. Qa8 {[%emt 0:0:29]} Qf1+ {[%emt 0:0:9]} 0-1

[Event "FIDE World Rapid-ch Open 2018"]
[White "Giri, Anish"]
[Black "Salem, A.R. Saleh"]
[Site "St. Petersburg"]
[Round "11.6"]
[Annotator "ChessBase"]
[Result "1-0"]
[Date "2018.12.28"]
[WhiteElo "2783"]
[BlackElo "2660"]
[PlyCount "77"]
[TimeControl "900+10"]

1. e4 {[%emt 0:0:0]} c5 {[%emt 0:0:0]} 2. Nf3 {[%emt 0:0:0]} d6 {[%emt 0:0:0]} 3. Bb5+ {[%emt 0:0:0]} Nd7 {[%emt 0:0:0]} 4. a4 {[%emt 0:0:0]} Ngf6 {[%emt 0:0:11]} 5. Nc3 {[%emt 0:0:0]} a6 {[%emt 0:0:15]} 6. Be2 {[%emt 0:0:2]
} b6 {[%emt 0:0:45]} 7. d4 {[%emt 0:0:8]} cxd4 {[%emt 0:0:2]
} 8. Qxd4 {[%emt 0:0:1]} Bb7 {[%emt 0:0:20]} 9. 0-0 {[%emt 0:0:12]} e5 {[%emt 0:0:6]
} 10. Qe3 {[%emt 0:0:6]} Be7 {[%emt 0:0:37]} 11. Nd2 {[%emt 0:0:0]} 0-0 {[%emt 0:0:35]} 12. Rd1 {[%emt 0:0:1]} Qc7 {[%emt 0:1:34]} 13. Nc4 {[%emt 0:3:59]} Nc5 {[%emt 0:0:39]} 14. f3 {[%emt 0:1:0]} Rfd8 {[%emt 0:0:1]
} 15. b4 {[%emt 0:2:4]} Ncd7 {[%emt 0:4:53]} 16. Ba3 {[%emt 0:0:0]} Rab8 {[%emt 0:2:45]} 17. b5 {[%emt 0:1:44]} Nc5 {[%emt 0:1:7]} 18. Bxc5 {[%emt 0:0:2]} dxc5 {[%emt 0:0:11]} 19. bxa6 {[%emt 0:2:11]} Bxa6 {[%emt 0:0:3]
} 20. Nb5 {[%emt 0:0:3]} Bxb5 {[%emt 0:0:22]} 21. axb5 {[%emt 0:0:1]
} Nh5 {[%emt 0:1:1]} 22. g3 {[%emt 0:0:29]} g6 {[%emt 0:0:1]
} 23. Qa3 {[%emt 0:0:52]} Rxd1+ {[%emt 0:1:0]} 24. Rxd1 {[%emt 0:0:13]} Rd8 {[%emt 0:0:1]} 25. Rxd8+ {[%emt 0:0:23]} Bxd8 {[%emt 0:0:47]} 26. Qa8 {[%emt 0:0:27]
} Nf6 {[%emt 0:0:11]} 27. Nxe5 {[%emt 0:0:37]} Qxe5 {[%emt 0:0:0]} 28. Qxd8+ {[%emt 0:0:1]} Kg7 {[%emt 0:0:1]} 29. Qd2 {[%emt 0:1:1]
} h5 {[%emt 0:0:19]} 30. Kg2 {[%emt 0:0:46]} h4 {[%emt 0:0:2]} 31. Qd3 {[%emt 0:1:5]
} g5 {[%emt 0:0:37]} 32. c3 {[%emt 0:0:15]} Nh5 {[%emt 0:0:43]
} 33. Qd5 {[%emt 0:0:39]} Qe7 {[%emt 0:0:49]} 34. f4 {[%emt 0:0:13]} Nf6 {[%emt 0:0:12]
} 35. Qxg5+ {[%emt 0:0:2]} Kf8 {[%emt 0:0:1]} 36. Qh6+ {[%emt 0:0:32]
} Ke8 {[%emt 0:0:11]} 37. Qh8+ {[%emt 0:0:33]} Kd7 {[%emt 0:0:0]} 38. e5 {[%emt 0:0:1]} Nd5 {[%emt 0:0:8]} 39. Bg4+ {[%emt 0:0:2]} 1-0

[Event "FIDE World Rapid-ch Open 2018"]
[White "Anton Guijarro, David"]
[Black "Anand, Viswanathan"]
[Site "St. Petersburg"]
[Round "11.7"]
[Annotator "ChessBase"]
[Result "1/2-1/2"]
[Date "2018.12.28"]
[WhiteElo "2642"]
[BlackElo "2773"]
[PlyCount "48"]
[TimeControl "900+10"]

1. e4 {[%emt 0:0:0]} e5 {[%emt 0:0:0]} 2. Nf3 {[%emt 0:0:0]} Nc6 {[%emt 0:0:0]
} 3. Bc4 {[%emt 0:0:0]} Bc5 {[%emt 0:0:2]} 4. c3 {[%emt 0:0:0]} Nf6 {[%emt 0:0:4]} 5. d4 {[%emt 0:0:3]} exd4 {[%emt 0:0:2]} 6. e5 {[%emt 0:0:2]
} d5 {[%emt 0:0:4]} 7. Bb5 {[%emt 0:0:2]} Ne4 {[%emt 0:0:6]
} 8. cxd4 {[%emt 0:0:3]} Bb6 {[%emt 0:0:3]} 9. Nc3 {[%emt 0:0:5]} 0-0 {[%emt 0:0:14]
} 10. Be3 {[%emt 0:0:3]} f6 {[%emt 0:0:8]} 11. Qb3 {[%emt 0:0:0]} Ba5 {[%emt 0:3:36]} 12. exf6 {[%emt 0:4:52]} Nxf6 {[%emt 0:1:43]} 13. Bxc6 {[%emt 0:0:42]} bxc6 {[%emt 0:0:7]} 14. Ne5 {[%emt 0:0:55]} Qd6 {[%emt 0:2:23]
} 15. 0-0 {[%emt 0:1:5]} c5 {[%emt 0:3:6]} 16. Na4 {[%emt 0:0:0]} c4 {[%emt 0:0:28]} 17. Qc2 {[%emt 0:0:23]} Ng4 {[%emt 0:0:13]} 18. Nxg4 {[%emt 0:0:51]} Bxg4 {[%emt 0:0:5]} 19. Bd2 {[%emt 0:0:40]} Bb6 {[%emt 0:0:38]
} 20. Nxb6 {[%emt 0:0:17]} axb6 {[%emt 0:0:3]} 21. f3 {[%emt 0:0:36]
} Bf5 {[%emt 0:0:14]} 22. Qc3 {[%emt 0:0:16]} Bd3 {[%emt 0:0:0]} 23. Rfe1 {[%emt 0:0:10]} Rfe8 {[%emt 0:0:37]} 24. a3 {[%emt 0:0:27]} h6 {[%emt 0:0:18]} 1/2-1/2

[Event "FIDE World Rapid-ch Open 2018"]
[White "Gelfand, Boris"]
[Black "Saric, Ivan"]
[Site "St. Petersburg"]
[Round "11.8"]
[Annotator "ChessBase"]
[Result "1-0"]
[Date "2018.12.28"]
[WhiteElo "2673"]
[BlackElo "2695"]
[PlyCount "97"]
[TimeControl "900+10"]

1. d4 {[%emt 0:0:0]} Nf6 {[%emt 0:0:0]} 2. c4 {[%emt 0:0:0]} e6 {[%emt 0:0:0]} 3. Nf3 {[%emt 0:0:0]} d5 {[%emt 0:0:3]} 4. g3 {[%emt 0:0:0]} Bb4+ {[%emt 0:0:2]} 5. Bd2 {[%emt 0:0:3]} Be7 {[%emt 0:0:1]} 6. Bg2 {[%emt 0:0:0]} 0-0 {[%emt 0:0:2]} 7. 0-0 {[%emt 0:0:3]} c6 {[%emt 0:0:2]} 8. Qc2 {[%emt 0:0:20]} Nbd7 {[%emt 0:0:4]} 9. Rc1 {[%emt 0:0:19]} a5 {[%emt 0:0:0]} 10. a3 {[%emt 0:0:37]} b6 {[%emt 0:1:48]} 11. cxd5 {[%emt 0:2:57]} cxd5 {[%emt 0:0:2]} 12. Nc3 {[%emt 0:0:1]} Ba6 {[%emt 0:0:12]} 13. Qa4 {[%emt 0:0:34]
} Ne4 {[%emt 0:1:0]} 14. Nb5 {[%emt 0:0:40]} Bxb5 {[%emt 0:0:0]} 15. Qxb5 {[%emt 0:0:1]} Nd6 {[%emt 0:0:1]} 16. Qd3 {[%emt 0:0:56]} a4 {[%emt 0:0:14]} 17. Bf4 {[%emt 0:2:6]} Nc4 {[%emt 0:0:56]} 18. Rxc4 {[%emt 0:0:44]
} dxc4 {[%emt 0:0:0]} 19. Qxc4 {[%emt 0:0:1]} Qc8 {[%emt 0:0:0]} 20. Qd3 {[%emt 0:0:55]} Qa6 {[%emt 0:0:7]} 21. Qxa6 {[%emt 0:0:26]} Rxa6 {[%emt 0:0:1]} 22. Rc1 {[%emt 0:0:1]} Ra7 {[%emt 0:1:35]} 23. Ne1 {[%emt 0:0:23]
} Bf6 {[%emt 0:0:31]} 24. Bd6 {[%emt 0:0:36]} Rd8 {[%emt 0:0:0]} 25. Nf3 {[%emt 0:0:1]} g5 {[%emt 0:1:43]} 26. g4 {[%emt 0:0:46]} Nf8 {[%emt 0:0:15]
} 27. Rc6 {[%emt 0:0:14]} Rad7 {[%emt 0:0:23]} 28. Bxf8 {[%emt 0:0:39]
} Kxf8 {[%emt 0:0:2]} 29. e3 {[%emt 0:0:0]} Rb8 {[%emt 0:0:0]} 30. Bf1 {[%emt 0:0:20]} b5 {[%emt 0:0:8]} 31. Nd2 {[%emt 0:0:25]} Be7 {[%emt 0:0:12]} 32. Ne4 {[%emt 0:0:19]} b4 {[%emt 0:0:11]} 33. Ra6 {[%emt 0:0:0]} f5 {[%emt 0:0:30]} 34. gxf5 {[%emt 0:0:56]} exf5 35. Ng3 {[%emt 0:0:0]} f4 {[%emt 0:0:11]} 36. Nf5 {[%emt 0:0:1]} fxe3 {[%emt 0:0:34]} 37. fxe3 {[%emt 0:0:1]} bxa3 {[%emt 0:0:35]} 38. bxa3 {[%emt 0:0:2]} Bxa3 {[%emt 0:1:20]
} 39. Rxa4 {[%emt 0:0:11]} Be7 {[%emt 0:1:43]} 40. Ra6 {[%emt 0:0:38]
} Rb1 {[%emt 0:0:23]} 41. Kg2 {[%emt 0:0:57]} Rb2+ {[%emt 0:0:0]} 42. Kg3 {[%emt 0:0:19]} Bd8 {[%emt 0:0:8]} 43. Ra8 {[%emt 0:0:37]} Kf7 {[%emt 0:0:14]} 44. Bd3 {[%emt 0:0:28]} h5 {[%emt 0:0:20]} 45. h3 {[%emt 0:0:0]} Bc7+ {[%emt 0:0:47]} 46. Kf3 {[%emt 0:0:2]} Rh2 {[%emt 0:0:3]} 47. Bc4+ {[%emt 0:0:46]} Kg6 {[%emt 0:0:11]} 48. Ra6+ {[%emt 0:0:29]} Kxf5 {[%emt 0:0:31]
} 49. Bd3# 1-0

[Event "FIDE World Rapid-ch Open 2018"]
[White "Mamedyarov, Shakhriyar"]
[Black "Timofeev, Artyom"]
[Site "St. Petersburg"]
[Round "11.9"]
[Annotator "ChessBase"]
[Result "1-0"]
[Date "2018.12.28"]
[WhiteElo "2817"]
[BlackElo "2589"]
[PlyCount "109"]
[TimeControl "900+10"]

1. d4 {[%emt 0:0:0]} d5 {[%emt 0:0:0]} 2. c4 {[%emt 0:0:0]} dxc4 {[%emt 0:0:0]
} 3. Nf3 {[%emt 0:0:2]} Nf6 {[%emt 0:0:1]} 4. Qa4+ {[%emt 0:0:0]} c6 {[%emt 0:1:1]} 5. Qxc4 {[%emt 0:0:3]} g6 {[%emt 0:0:10]} 6. g3 {[%emt 0:0:43]} Be6 {[%emt 0:0:22]} 7. Qa4 {[%emt 0:0:9]} Nbd7 {[%emt 0:0:0]} 8. Bg2 {[%emt 0:0:2]} Nb6 {[%emt 0:0:30]} 9. Qd1 {[%emt 0:0:12]} Bg7 {[%emt 0:0:10]
} 10. 0-0 {[%emt 0:0:2]} 0-0 {[%emt 0:0:4]} 11. Re1 {[%emt 0:0:0]} Qc8 {[%emt 0:0:32]} 12. e4 {[%emt 0:0:39]} Bh3 {[%emt 0:1:1]} 13. Qc2 {[%emt 0:0:29]} Bxg2 {[%emt 0:1:18]} 14. Kxg2 {[%emt 0:0:1]} Nfd7 {[%emt 0:0:2]
} 15. a4 {[%emt 0:1:29]} a5 {[%emt 0:0:24]} 16. Be3 {[%emt 0:0:0]} Qc7 {[%emt 0:0:50]} 17. Na3 {[%emt 0:0:51]} Qd6 {[%emt 0:0:14]} 18. b3 {[%emt 0:1:25]} Rfd8 {[%emt 0:2:27]} 19. Red1 {[%emt 0:0:56]} e6 {[%emt 0:0:35]
} 20. h4 {[%emt 0:1:45]} Qe7 {[%emt 0:0:55]} 21. Bg5 {[%emt 0:0:0]} f6 {[%emt 0:0:29]} 22. Be3 {[%emt 0:0:1]} f5 {[%emt 0:2:26]} 23. Nc4 {[%emt 0:0:25]} fxe4 {[%emt 0:0:33]} 24. Qxe4 {[%emt 0:0:2]} Nf6 {[%emt 0:0:8]
} 25. Qc2 {[%emt 0:0:2]} Nbd5 {[%emt 0:0:3]} 26. Bg5 {[%emt 0:0:10]
} Rf8 {[%emt 0:0:21]} 27. Re1 {[%emt 0:0:9]} Nb4 {[%emt 0:0:0]} 28. Qe2 {[%emt 0:0:11]} h6 {[%emt 0:0:7]} 29. Bf4 {[%emt 0:0:27]} Rad8 {[%emt 0:0:15]} 30. Qxe6+ {[%emt 0:0:41]} Qxe6 {[%emt 0:0:2]} 31. Rxe6 {[%emt 0:0:1]
} Nfd5 {[%emt 0:1:22]} 32. Be5 {[%emt 0:1:34]} Kf7 {[%emt 0:0:0]} 33. Bxg7 {[%emt 0:0:28]} Kxg7 {[%emt 0:0:22]} 34. Nxa5 {[%emt 0:0:14]} Nc2 {[%emt 0:1:22]} 35. Rc1 {[%emt 0:0:30]} Rxf3 {[%emt 0:0:3]} 36. Rxc2 {[%emt 0:0:2]
} Rf7 {[%emt 0:0:1]} 37. Nc4 {[%emt 0:0:27]} Re7 {[%emt 0:0:0]} 38. Rce2 {[%emt 0:0:28]} Kf7 {[%emt 0:0:24]} 39. Rxe7+ {[%emt 0:0:41]} Nxe7 {[%emt 0:0:1]} 40. Re4 {[%emt 0:0:5]} Nf5 {[%emt 0:0:6]} 41. Ne5+ {[%emt 0:0:1]
} Kf6 {[%emt 0:0:4]} 42. Ng4+ {[%emt 0:0:42]} Kf7 {[%emt 0:0:0]} 43. Ne5+ {[%emt 0:0:19]} Kf6 {[%emt 0:0:3]} 44. Nf3 {[%emt 0:0:1]} g5 {[%emt 0:0:14]} 45. hxg5+ {[%emt 0:0:9]} hxg5 {[%emt 0:0:1]} 46. Kf1 {[%emt 0:0:31]
} Ng7 {[%emt 0:0:40]} 47. Ke2 {[%emt 0:0:17]} Ne6 {[%emt 0:0:0]} 48. Ke3 {[%emt 0:1:22]} c5 {[%emt 0:0:2]} 49. Kd3 {[%emt 0:0:28]} cxd4 {[%emt 0:0:4]} 50. b4 {[%emt 0:0:1]} Ra8 {[%emt 0:1:5]} 51. a5 {[%emt 0:0:0]} Nc7 {[%emt 0:0:7]} 52. Nxd4 {[%emt 0:0:12]} Rc8 {[%emt 0:0:6]} 53. Nb3 {[%emt 0:0:27]} Nd5 {[%emt 0:0:13]} 54. Rc4 {[%emt 0:0:10]} Rd8 {[%emt 0:0:3]
} 55. Ke4 {[%emt 0:0:4]} 1-0